bitfinex/quotes_SOLUSD_20240714
["timestamp","ask_amount","ask_price","bid_price","bid_amount"]
[1720935471300,1.71468394,145.84,145.72,38.6278]
[1720935471502,46.71468394,145.84,145.72,38.6278]
[1720935471727,46.71468394,145.84,145.72,22.16]
[1720935472100,16.5833,145.82,145.68,7.14667471]
[1720935472302,46.71516002,145.81,145.65,22.7109]
[1720935472609,23.0541,145.8,145.67,42.8]
[1720935472811,1.71519284,145.79,145.7,22.16]
[1720935473004,1.71519284,145.79,145.71,0.86199669]
[1720935473322,23.0541,145.8,145.71,0.86199669]
[1720935473526,23.0541,145.8,145.71,45.86199669]
[1720935473699,23.0541,145.8,145.72,20.0]
[1720935473905,23.0541,145.8,145.73,45.86195826]
[1720935474106,23.0541,145.8,145.74,45.86195826]
[1720935474319,23.0541,145.8,145.74,0.86195826]
[1720935474523,23.0541,145.8,145.74,45.86195826]
[1720935477798,16.5833,145.8,145.76,22.16]
[1720935478032,18.12219627,145.83,145.77,65.8611131]
[1720935478338,16.5833,145.83,145.77,45.8611131]
[1720935479411,16.5833,145.83,145.78,20.0]
[1720935479617,16.5833,145.83,145.79,45.86056195]
[1720935479924,16.5833,145.83,145.8,0.86056195]
[1720935480543,16.5833,145.83,145.78,20.0]
[1720935480833,16.5833,145.83,145.77,20.0]
[1720935481033,16.5833,145.83,145.74,22.16]
[1720935481034,16.5833,145.83,145.78,45.0]
[1720935481344,18.29776029,145.83,145.78,45.0]
[1720935481502,18.29776029,145.83,145.75,20.0]
[1720935481710,18.29776029,145.83,145.76,45.0]
[1720935481923,1.71447882,145.82,145.77,20.0]
[1720935482723,1.71447882,145.82,145.77,0.86139611]
[1720935483717,16.5833,145.83,145.78,0.86139456]
[1720935484434,16.5833,145.83,145.78,23.02139456]
[1720935484609,16.165,145.87,145.79,65.0]
[1720935484805,16.165,145.93,145.81,28.4664]
[1720935485005,16.165,145.93,145.84,42.8]
[1720935485312,16.165,145.93,145.85,45.85796769]
[1720935485517,16.165,145.93,145.86,20.8577979]
[1720935485847,16.165,145.93,145.87,45.0]
[1720935486007,16.165,145.93,145.88,20.85780485]
[1720935486202,1.71317611,145.92,145.85,0.85780485]
[1720935486436,1.71317611,145.92,145.79,7.07006526]
[1720935486630,16.165,145.9,145.8,0.85966468]
[1720935486931,1.71388612,145.89,145.8,22.16]
[1720935488342,1.71388612,145.89,145.81,0.86015128]
[1720935489017,1.71388612,145.89,145.81,45.86015128]
[1720935489444,1.71388612,145.89,145.81,45.0]
[1720935489625,1.71388612,145.89,145.78,22.16]
[1720935489818,6.1795,145.88,145.78,22.16]
[1720935490018,1.71425437,145.87,145.78,22.16]
[1720935490234,16.165,145.86,145.78,22.16]
[1720935490541,1.71445134,145.85,145.78,22.16]
[1720935491049,1.71445134,145.85,145.69,37.4469]
[1720935491366,6.1795,145.84,145.73,22.16]
[1720935491546,1.71474692,145.83,145.73,22.16]
[1720935491730,1.71474473,145.82,145.73,22.16]
[1720935492440,1.71474473,145.82,145.74,20.0]
[1720935492745,1.71474484,145.83,145.75,45.0]
[1720935492944,1.71474484,145.83,145.76,20.86116851]
[1720935493155,1.71474484,145.83,145.77,45.861112]
[1720935493324,7.89405466,145.84,145.77,45.861112]
[1720935493933,7.89405466,145.84,145.77,45.0]
[1720935494621,1.71459174,145.83,145.77,45.0]
[1720935495034,1.71459174,145.83,145.78,0.86117402]
[1720935495345,1.71459174,145.83,145.77,45.0]
[1720935496352,6.1795,145.84,145.78,0.8608964]
[1720935496918,6.1795,145.84,145.79,22.16]
[1720935497230,6.1795,145.84,145.8,20.0]
[1720935497444,6.1795,145.84,145.8,20.86052598]
[1720935497750,6.1795,145.84,145.8,0.86052598]
[1720935498125,6.1795,145.84,145.79,20.0]
[1720935499232,6.1795,145.84,145.8,0.86039123]
[1720935499428,6.1795,145.84,145.8,45.0]
[1720935500130,16.165,145.86,145.81,43.01999142]
[1720935500345,16.165,145.86,145.82,45.0]
[1720935500559,16.165,145.86,145.83,20.85949218]
[1720935500859,16.165,145.86,145.84,0.85949271]
[1720935501037,16.165,145.86,145.83,20.0]
[1720935501225,16.165,145.86,145.82,45.0]
[1720935501421,16.165,145.86,145.83,20.0]
[1720935502629,16.165,145.86,145.82,20.0]
[1720935503530,16.165,145.86,145.79,22.16]
[1720935503833,16.165,145.86,145.8,0.86007532]
[1720935504157,16.165,145.86,145.8,45.86007532]
[1720935504326,16.165,145.86,145.81,20.0]
[1720935504530,16.165,145.86,145.82,0.86001921]
[1720935504779,6.1795,145.89,145.83,0.86001921]
[1720935505062,6.1795,145.89,145.85,22.16]
[1720935505229,6.1795,145.89,145.86,45.85866679]
[1720935506331,6.1795,145.89,145.83,0.85866008]
[1720935506749,6.1795,145.89,145.82,20.0]
[1720935507228,7.89322079,145.89,145.82,20.0]
[1720935507433,7.89322079,145.89,145.83,0.8592677]
[1720935507659,7.89322079,145.89,145.83,45.8592677]
[1720935507974,7.89322079,145.89,145.84,20.0]
[1720935508262,7.89322079,145.89,145.83,0.8592677]
[1720935509133,7.89322079,145.89,145.83,20.8592677]
[1720935509655,6.1795,145.89,145.83,20.8592677]
[1720935509840,7.89325947,145.89,145.83,20.0]
[1720935510361,7.89325947,145.89,145.84,0.85956304]
[1720935510535,7.89325947,145.89,145.83,20.0]
[1720935510843,7.89325947,145.89,145.83,20.85956626]
[1720935511638,7.89325947,145.89,145.81,20.85983837]
[1720935513136,7.89325947,145.89,145.82,45.0]
[1720935513440,7.89325947,145.89,145.83,20.85955305]
[1720935513649,6.1795,145.89,145.83,20.85955305]
[1720935513851,6.1795,145.89,145.83,0.85955305]
[1720935514141,6.1795,145.89,145.83,20.85955305]
[1720935515063,15.1091,145.9,145.84,45.0]
[1720935515370,15.1091,145.9,145.85,20.85857324]
[1720935515673,15.1091,145.9,145.86,45.85872036]
[1720935516763,15.1091,145.9,145.86,45.85857392]
[1720935517155,15.1091,145.9,145.86,45.0]
[1720935517465,15.1091,145.9,145.86,0.85858271]
[1720935517638,15.1091,145.9,145.84,20.8592235]
[1720935517639,1.71376722,145.89,145.84,20.8592235]
[1720935517840,1.71376722,145.89,145.85,0.85940062]
[1720935518066,1.71376722,145.89,145.82,20.85931833]
[1720935518360,16.82290673,145.9,145.83,45.85919137]
[1720935518660,1.71375383,145.89,145.84,20.0]
[1720935519165,1.71375383,145.89,145.85,0.85957311]
[1720935519377,1.71375383,145.89,145.83,0.85954472]
[1720935519970,1.71375383,145.89,145.82,20.0]
[1720935520455,1.71375383,145.89,145.83,0.85956753]
[1720935520663,16.8230085,145.9,145.83,0.85956753]
[1720935520838,16.8230085,145.9,145.83,45.0]
[1720935521039,15.1091,145.9,145.84,20.0]
[1720935521247,1.71373067,145.89,145.84,20.0]
[1720935521647,16.8228252,145.9,145.85,0.85912265]
[1720935521968,1.71372545,145.89,145.85,0.85912265]
[1720935522265,1.71372545,145.89,145.85,0.85912326]
[1720935522478,1.71372545,145.89,145.82,20.0]
[1720935527269,6.0616,145.88,145.82,20.0]
[1720935527572,1.7142333,145.87,145.79,20.86034209]
[1720935527782,1.7142333,145.87,145.8,0.86032897]
[1720935528579,7.77566205,145.88,145.8,45.86032897]
[1720935528775,6.0616,145.88,145.81,20.0]
[1720935528967,6.0616,145.88,145.82,45.85956114]
[1720935529156,6.0616,145.88,145.83,20.85959207]
[1720935531164,6.0616,145.88,145.83,20.0]
[1720935532082,1.71393971,145.87,145.76,9.326376]
[1720935532287,15.7208,145.86,145.77,22.16]
[1720935532464,1.71442207,145.85,145.77,22.16]
[1720935533193,1.71442207,145.85,145.75,30.78264325]
[1720935533904,1.71442207,145.85,145.76,20.0]
[1720935534387,1.71442207,145.85,145.77,45.0]
[1720935534587,1.71442207,145.85,145.78,20.0]
[1720935534765,1.71442207,145.85,145.79,0.86081306]
[1720935534966,1.71442207,145.85,145.78,20.0]
[1720935535575,1.71442207,145.85,145.79,0.86080518]
[1720935535766,1.71442207,145.85,145.8,0.86049181]
[1720935535969,1.71442207,145.85,145.78,42.16]
[1720935536184,1.71442207,145.85,145.79,45.86055248]
[1720935536384,1.71442207,145.85,145.8,0.86049166]
[1720935536693,15.7208,145.86,145.79,45.0]
[1720935536883,6.0616,145.84,145.79,0.85996772]
[1720935537383,1.71440326,145.83,145.76,42.16]
[1720935537579,1.71440326,145.83,145.77,0.86118188]
[1720935537784,1.7145834,145.82,145.77,0.86118188]
[1720935538286,1.7145834,145.82,145.76,42.16]
[1720935538863,1.71458418,145.83,145.76,42.16]
[1720935539089,15.7208,145.81,145.73,22.16]
[1720935539585,1.71476937,145.8,145.73,22.16]
[1720935540390,1.71476937,145.8,145.74,20.0]
[1720935541592,15.7208,145.81,145.76,22.16]
[1720935541800,15.7208,145.81,145.77,65.86112814]
[1720935542180,15.7208,145.81,145.77,20.86112814]
[1720935542691,6.0616,145.84,145.78,45.0]
[1720935542886,6.0616,145.84,145.79,0.86065859]
[1720935543189,6.0616,145.84,145.8,0.86028241]
[1720935543389,6.0616,145.84,145.8,45.86028241]
[1720935544665,15.4605,145.85,145.81,42.16]
[1720935544868,15.4605,145.85,145.82,45.0]
[1720935545071,6.1713,145.88,145.83,0.86001648]
[1720935545275,7.8852526,145.88,145.83,0.86001648]
[1720935545570,7.8852526,145.88,145.82,45.0]
[1720935545770,7.8852526,145.88,145.81,42.16]
[1720935545989,7.8852526,145.88,145.82,0.8600696]
[1720935546299,7.8852526,145.88,145.82,0.85989652]
[1720935547087,7.8852526,145.88,145.81,42.16]
[1720935547474,7.8852526,145.88,145.82,0.85989436]
[1720935547675,7.8852526,145.88,145.83,0.85963765]
[1720935549206,7.8852526,145.88,145.81,20.0]
[1720935549386,7.8852526,145.88,145.82,0.85990365]
[1720935549585,7.8852526,145.88,145.8,20.0]
[1720935550109,15.4605,145.87,145.74,27.2046]
[1720935550298,1.7143802,145.86,145.76,22.16]
[1720935550485,1.71437702,145.85,145.76,22.16]
[1720935550687,1.71437702,145.85,145.77,0.86068703]
[1720935551426,1.71437752,145.86,145.77,23.02068703]
[1720935551700,15.4605,145.87,145.78,20.0]
[1720935551701,1.71437845,145.85,145.78,20.0]
[1720935552504,1.71437858,145.86,145.79,0.86069078]
[1720935552707,1.71437606,145.85,145.8,0.86068473]
[1720935553511,1.71437606,145.85,145.78,20.0]
[1720935553687,1.71439444,145.84,145.76,22.16]
[1720935553889,1.714401,145.86,145.77,65.86074457]
[1720935554088,1.7143943,145.85,145.77,65.86074457]
[1720935555007,1.71439801,145.84,145.77,65.86074457]
[1720935555239,1.71439801,145.86,145.77,65.86074457]
[1720935555508,1.71439801,145.86,145.77,65.0]
[1720935556506,1.71439801,145.86,145.78,0.86025664]
[1720935558932,1.7142038,145.85,145.78,0.86025664]
[1720935559415,1.7142038,145.85,145.77,65.0]
[1720935559911,1.71442386,145.84,145.78,0.86083712]
[1720935560211,1.71442164,145.86,145.78,0.86083712]
[1720935560417,1.7144249,145.85,145.78,0.86083712]
[1720935561492,1.71443607,145.84,145.78,0.86083712]
[1720935561705,1.71443593,145.86,145.78,0.86083712]
[1720935561915,23.74947767,145.85,145.74,42.16]
[1720935562215,1.71449464,145.84,145.75,66.50096932]
[1720935562399,22.0349,145.85,145.76,20.0]
[1720935562600,1.71428503,145.84,145.77,45.0]
[1720935562804,1.71428503,145.84,145.78,20.0]
[1720935563123,1.71428503,145.84,145.76,20.0]
[1720935563621,1.71428503,145.84,145.75,20.0]
[1720935563824,1.71428503,145.84,145.76,45.0]
[1720935564024,1.71428503,145.84,145.77,20.0]
[1720935564324,1.71428503,145.84,145.78,0.86116793]
[1720935566099,1.71428503,145.84,145.77,20.0]
[1720935566824,1.71428503,145.84,145.78,0.86116414]
[1720935566999,1.71428503,145.84,145.77,20.0]
[1720935567802,1.71428503,145.84,145.74,30.78264325]
[1720935567998,15.5159,145.83,145.75,45.86156328]
[1720935568198,1.71478714,145.82,145.75,45.86156328]
[1720935568624,1.71478714,145.82,145.78,11.09]
[1720935568794,12.80478714,145.82,145.78,11.09]
[1720935569214,12.80478714,145.82,145.75,45.0]
[1720935569429,12.80478714,145.82,145.78,11.09]
[1720935570418,1.71478714,145.82,145.78,11.09]
[1720935572133,1.71478714,145.82,145.8,11.09]
[1720935573960,1.71478714,145.82,145.76,20.0]
[1720935574144,1.71478714,145.82,145.79,11.09]
[1720935574616,1.71478714,145.82,145.78,11.09]
[1720935575130,1.71478714,145.82,145.76,20.8614204]
[1720935575307,1.71478714,145.82,145.78,11.09]
[1720935576335,1.71478714,145.82,145.79,11.09]
[1720935576507,15.5159,145.83,145.81,11.09]
[1720935576508,17.23062304,145.83,145.81,11.09]
[1720935576707,17.23062304,145.83,145.82,11.09]
[1720935576708,15.5159,145.83,145.82,11.09]
[1720935577723,15.5159,145.83,145.76,0.8608155]
[1720935578033,1.71474315,145.82,145.78,11.09]
[1720935578620,12.80474315,145.82,145.77,11.09]
[1720935579305,17.609,145.81,145.72,17.80832432]
[1720935579504,17.609,145.81,145.68,260.0]
[1720935579505,26.6059,145.79,145.68,260.0]
[1720935579734,1.71521937,145.78,145.75,11.09]
[1720935581329,1.71521937,145.78,145.68,260.0]
[1720935581631,12.80521937,145.78,145.73,11.09]
[1720935582722,12.80521937,145.78,145.69,0.86306391]
[1720935582923,17.745,145.77,145.73,11.09]
[1720935583232,1.71549844,145.76,145.73,11.09]
[1720935584942,1.71549844,145.76,145.74,11.09]
[1720935585634,1.71549844,145.76,145.73,11.09]
[1720935585820,1.71549844,145.76,145.68,20.0]
[1720935586020,1.71549844,145.76,145.73,11.09]
[1720935586340,12.80549844,145.76,145.72,11.09]
[1720935586526,12.80549844,145.76,145.69,45.0]
[1720935586837,12.80549844,145.76,145.72,11.09]
[1720935586838,1.71549844,145.76,145.72,11.09]
[1720935587140,1.71549844,145.76,145.73,11.09]
[1720935588545,1.71549844,145.76,145.72,11.09]
[1720935589134,1.71549844,145.76,145.73,11.09]
[1720935589619,1.71549844,145.76,145.74,11.09]
[1720935590337,8.3703676,145.77,145.74,11.09]
[1720935590520,6.655,145.77,145.75,11.09]
[1720935590716,1.71521375,145.78,145.76,11.09]
[1720935590916,1.71521375,145.78,145.75,11.09]
[1720935592147,1.71521375,145.78,145.74,11.09]
[1720935593157,6.655,145.75,145.68,20.0]
[1720935593448,19.46047838,145.75,145.68,20.0]
[1720935593629,15.7911,145.73,145.64,15.3026]
[1720935593812,1.71584418,145.72,145.64,15.3026]
[1720935594149,1.71584418,145.72,145.68,11.09]
[1720935594943,1.71584418,145.72,145.69,11.09]
[1720935595617,1.71584418,145.72,145.7,11.09]
[1720935595813,15.7911,145.73,145.71,11.09]
[1720935596019,15.7911,145.73,145.72,11.09]
[1720935596621,15.7911,145.73,145.71,11.09]
[1720935598544,15.7911,145.73,145.65,20.64]
[1720935598749,15.7911,145.73,145.67,22.2]
[1720935598957,15.7911,145.73,145.68,65.0]
[1720935599635,15.7911,145.73,145.69,0.86323082]
[1720935600654,15.7911,145.73,145.66,0.86371688]
[1720935600962,15.7911,145.73,145.66,45.0]
[1720935601136,15.7911,145.73,145.67,20.0]
[1720935601338,15.7911,145.73,145.65,87.2]
[1720935601532,17.50677918,145.73,145.66,45.0]
[1720935601739,17.50677918,145.73,145.67,20.8639139]
[1720935601952,17.50677918,145.73,145.68,0.86391822]
[1720935602658,1.7157198,145.72,145.68,0.86391822]
[1720935603142,15.7911,145.73,145.68,0.86391822]
[1720935603545,15.7911,145.73,145.68,68.06391822]
[1720935603746,6.655,145.75,145.68,68.06391822]
[1720935605041,8.37039804,145.75,145.68,68.06391822]
[1720935605661,15.2665,145.76,145.69,20.0]
[1720935605861,1.71517283,145.75,145.7,45.86259696]
[1720935606161,1.71517283,145.75,145.69,20.0]
[1720935606468,1.71517283,145.75,145.69,20.86319894]
[1720935606667,1.71517283,145.75,145.69,0.86319894]
[1720935606967,1.71517283,145.75,145.66,20.86374336]
[1720935607175,1.71517283,145.75,145.67,45.0]
[1720935607343,1.71517283,145.75,145.68,20.86361096]
[1720935607543,1.71517283,145.75,145.69,45.0]
[1720935607770,15.2665,145.76,145.7,0.86326406]
[1720935607965,15.2665,145.76,145.71,0.8631812]
[1720935608139,1.71541626,145.75,145.7,0.86328354]
[1720935608468,1.71541626,145.75,145.68,20.0]
[1720935608655,1.71541626,145.75,145.66,20.0]
[1720935608842,1.71541626,145.75,145.67,0.86375575]
[1720935609049,1.71541626,145.75,145.68,0.86389799]
[1720935609447,6.1752,145.74,145.68,0.86389799]
[1720935609648,1.71571348,145.73,145.68,0.86389799]
[1720935610062,1.71571348,145.73,145.65,42.2]
[1720935610063,1.71571348,145.73,145.66,0.86389911]
[1720935610266,1.71571348,145.73,145.66,45.86389911]
[1720935610572,1.71571348,145.73,145.67,20.0]
[1720935610748,1.71571348,145.73,145.68,0.86389367]
[1720935611348,1.71571348,145.73,145.67,20.0]
[1720935611764,7.8909161,145.74,145.68,0.86390083]
[1720935611945,6.1752,145.74,145.68,0.86390083]
[1720935612150,1.715534,145.73,145.67,20.0]
[1720935615583,1.715534,145.73,145.68,0.86388705]
[1720935616163,1.715534,145.73,145.66,45.0]
[1720935616376,15.2665,145.72,145.66,45.0]
[1720935616549,1.71587053,145.71,145.66,45.0]
[1720935618149,1.71587053,145.71,145.63,40.00759261]
[1720935618479,15.2665,145.72,145.64,20.86447596]
[1720935618480,1.71595574,145.7,145.64,20.86447596]
[1720935618680,1.71595574,145.7,145.67,11.11]
[1720935619276,1.71613768,145.71,145.67,11.11]
[1720935619467,1.71613559,145.7,145.67,11.11]
[1720935620081,1.71613559,145.7,145.65,0.86489002]
[1720935620373,12.82610589,145.71,145.66,11.11]
[1720935620677,1.71614307,145.7,145.66,11.11]
[1720935621753,1.71614307,145.7,145.67,11.11]
[1720935622051,1.71609928,145.71,145.67,11.11]
[1720935622360,1.71610679,145.71,145.68,11.11]
[1720935622755,16.98243449,145.72,145.69,11.11]
[1720935623476,11.11,145.71,145.66,11.11]
[1720935623652,1.71613085,145.7,145.66,11.11]
[1720935623851,12.82613085,145.7,145.66,11.11]
[1720935624056,1.71613085,145.7,145.61,0.2]
[1720935624258,15.9735,145.67,145.63,11.11]
[1720935624460,1.716453,145.66,145.63,11.11]
[1720935625653,15.9735,145.67,145.64,11.11]
[1720935625654,17.69001821,145.67,145.64,11.11]
[1720935626151,15.9735,145.67,145.61,1.06559654]
[1720935626356,15.9735,145.67,145.66,11.11]
[1720935627264,1.71618296,145.71,145.66,11.11]
[1720935627265,15.9735,145.71,145.66,11.11]
[1720935627575,15.9735,145.71,145.69,11.11]
[1720935628360,15.9735,145.71,145.7,11.11]
[1720935629166,17.68928433,145.71,145.68,11.11]
[1720935629367,17.68945693,145.71,145.68,11.11]
[1720935629551,15.9735,145.71,145.69,11.97419482]
[1720935629753,15.9735,145.71,145.69,11.11]
[1720935630376,15.9735,145.71,145.7,11.11]
[1720935630559,17.68928198,145.71,145.68,11.11]
[1720935632181,1.71586987,145.7,145.67,11.11]
[1720935632369,17.68950536,145.71,145.68,11.11]
[1720935632575,1.71601004,145.7,145.67,11.11]
[1720935635893,1.71601004,145.7,145.68,11.11]
[1720935637679,15.9735,145.71,145.69,11.11]
[1720935638622,1.71586798,145.7,145.67,11.11]
[1720935638898,1.71586798,145.7,145.63,0.86482817]
[1720935639071,1.71586798,145.7,145.67,11.11]
[1720935639272,1.71586798,145.7,145.66,11.11]
[1720935640597,1.71586798,145.7,145.67,11.11]
[1720935641793,1.71586798,145.7,145.63,0.86482739]
[1720935641976,1.71586798,145.7,145.66,11.11]
[1720935642292,12.82586798,145.7,145.65,11.11]
[1720935642479,1.71586798,145.7,145.64,11.11]
[1720935642681,11.11,145.69,145.64,11.11]
[1720935643001,1.71637127,145.68,145.64,11.11]
[1720935643202,1.71636617,145.67,145.64,11.11]
[1720935643897,1.71636617,145.67,145.61,0.2]
[1720935644094,1.71636617,145.67,145.64,11.11]
[1720935644286,1.71643894,145.66,145.63,11.11]
[1720935644486,26.2136,145.65,145.61,0.2]
[1720935644693,1.71678103,145.64,145.61,0.2]
[1720935644996,1.71678103,145.64,145.61,11.31]
[1720935645399,16.82036479,145.65,145.62,11.11]
[1720935645701,15.1036,145.65,145.63,11.11]
[1720935645906,15.1036,145.65,145.62,0.86641767]
[1720935646071,6.0819,145.69,145.62,0.86641767]
[1720935646072,1.71643152,145.68,145.62,0.86641767]
[1720935646273,1.7164175,145.67,145.62,0.86641767]
[1720935647303,1.71641541,145.68,145.62,0.86641767]
[1720935647494,1.71641541,145.67,145.62,0.86641767]
[1720935648777,1.71641431,145.68,145.62,0.86641767]
[1720935648982,1.71641431,145.67,145.62,0.86641767]
[1720935649695,21.1855,145.69,145.62,0.86641767]
[1720935650010,1.7162283,145.68,145.66,11.11]
[1720935650302,1.71634395,145.67,145.64,11.11]
[1720935651009,12.82634395,145.67,145.61,0.2]
[1720935651187,12.82634395,145.67,145.62,11.11]
[1720935651391,11.11,145.65,145.61,11.31]
[1720935651591,1.71674745,145.64,145.61,0.2]
[1720935652193,16.82034745,145.64,145.61,0.2]
[1720935653498,16.82034745,145.64,145.61,11.31]
[1720935653721,16.82034745,145.64,145.61,0.2]
[1720935654708,27.93034745,145.64,145.61,0.2]
[1720935654908,1.71688609,145.63,145.61,0.2]
[1720935661611,1.71688609,145.63,145.61,11.31]
[1720935662806,21.1855,145.64,145.62,11.11]
[1720935662990,15.1036,145.64,145.63,11.11]
[1720935663197,6.337,145.68,145.63,11.11]
[1720935663198,1.71669813,145.67,145.63,11.11]
[1720935663505,1.71669813,145.67,145.61,1.06579406]
[1720935663718,1.71669813,145.67,145.63,11.11]
[1720935664029,11.11,145.66,145.62,11.11]
[1720935664224,1.7166939,145.65,145.62,11.11]
[1720935664894,1.71669414,145.64,145.61,11.31]
[1720935665084,1.71679931,145.65,145.62,11.11]
[1720935666318,1.71669118,145.64,145.61,11.31]
[1720935666818,1.71678587,145.65,145.61,11.31]
[1720935667026,11.11,145.66,145.61,11.31]
[1720935667320,1.71668786,145.65,145.61,11.31]
[1720935667493,1.71668786,145.65,145.62,11.11]
[1720935667694,1.71668786,145.65,145.63,11.11]
[1720935667893,1.71668786,145.65,145.62,11.11]
[1720935668313,1.71668663,145.66,145.62,11.11]
[1720935668916,12.82668663,145.66,145.62,11.11]
[1720935669326,1.5371312,145.65,145.62,11.11]
[1720935669894,1.71668795,145.64,145.61,11.31]
[1720935670094,1.71669091,145.65,145.61,11.31]
[1720935670993,11.11,145.66,145.61,11.31]
[1720935670994,1.71669047,145.64,145.61,11.31]
[1720935671389,11.11,145.66,145.62,11.11]
[1720935671613,1.71669727,145.65,145.62,11.11]
[1720935672499,1.71669727,145.65,145.61,11.31]
[1720935672826,1.71670206,145.64,145.61,11.31]
[1720935673715,1.71669825,145.65,145.62,11.11]
[1720935673906,1.71654441,145.67,145.63,11.11]
[1720935674731,12.82654441,145.67,145.62,11.11]
[1720935675021,32.6894,145.68,145.64,11.11]
[1720935675227,1.71654381,145.67,145.63,0.86587723]
[1720935675522,1.71654381,145.67,145.64,11.11]
[1720935676018,15.2424,145.68,145.65,0.86552653]
[1720935676210,15.2424,145.68,145.66,11.11]
[1720935676829,15.2424,145.68,145.61,1.06497536]
[1720935676830,1.71616292,145.67,145.61,0.2]
[1720935677007,11.11,145.66,145.61,0.2]
[1720935677211,1.71675388,145.65,145.62,11.11]
[1720935677418,1.7167295,145.64,145.62,11.11]
[1720935677630,1.7167295,145.64,145.61,11.31]
[1720935677926,12.8267295,145.64,145.61,0.2]
[1720935678306,1.71688487,145.63,145.61,0.2]
[1720935680699,26.3524,145.62,145.61,0.2]
[1720935683523,22.6441,145.61,145.51,1.069635]
[1720935683723,16.3738,145.55,145.51,1.069635]
[1720935683903,11.11,145.52,145.51,1.069635]
[1720935684104,57.82846685,145.52,145.51,1.069635]
[1720935684407,57.82846685,145.52,145.51,1e-08]
[1720935686220,1.71846685,145.52,145.51,1e-08]
[1720935686423,11.11,145.52,145.51,1e-08]
[1720935686623,1.71830157,145.53,145.51,1e-08]
[1720935687718,1.71826319,145.54,145.51,1e-08]
[1720935691034,18.09180302,145.59,145.51,1e-08]
[1720935695506,45.0,145.58,145.51,1e-08]
[1720935695707,1.71782456,145.57,145.51,1e-08]
[1720935699818,6.2703,145.56,145.51,1e-08]
[1720935700025,46.7184438,145.55,145.51,1e-08]
[1720935700331,1.71843787,145.54,145.51,1e-08]
[1720935705328,23.99843787,145.54,145.51,1e-08]
[1720935705649,45.0,145.53,145.51,1e-08]
[1720935705946,1.71856056,145.52,145.51,1e-08]
[1720935706322,28.5503,145.56,145.51,1e-08]
[1720935706323,1.71829856,145.55,145.51,1e-08]
[1720935706645,1.71839175,145.54,145.51,1e-08]
[1720935707147,15.7936,145.53,145.51,1e-08]
[1720935707312,46.71866205,145.52,145.51,1e-08]
[1720935708526,1.71866205,145.52,145.51,1e-08]
[1720935708946,1.71829559,145.55,145.51,1e-08]
[1720935709149,1.71829566,145.54,145.51,1e-08]
[1720935712864,22.28,145.53,145.51,1e-08]
[1720935713058,46.71866484,145.52,145.51,1e-08]
[1720935716664,57.86866484,145.52,145.51,1e-08]
[1720935717760,46.71866484,145.52,145.51,1e-08]
[1720935717964,56.15,145.52,145.51,1e-08]
[1720935718173,1.71849181,145.55,145.51,1e-08]
[1720935718469,11.15,145.52,145.51,1e-08]
[1720935720256,1.71822087,145.54,145.51,1e-08]
[1720935720456,18.58116309,145.57,145.51,1e-08]
[1720935720457,1.71821586,145.56,145.51,1e-08]
[1720935720667,11.15,145.55,145.51,1e-08]
[1720935720970,11.15,145.52,145.51,1e-08]
[1720935721338,12.86849154,145.52,145.51,1e-08]
[1720935722471,56.15,145.52,145.51,1e-08]
[1720935722963,1.71849366,145.54,145.51,1e-08]
[1720935723164,11.15,145.52,145.51,1e-08]
[1720935723363,57.86847772,145.52,145.51,1e-08]
[1720935727352,1.71847772,145.52,145.51,1e-08]
[1720935727579,11.15,145.52,145.51,1e-08]
[1720935728356,1.7182953,145.54,145.51,1e-08]
[1720935728675,12.8682953,145.54,145.51,1e-08]
[1720935728854,1.71804483,145.53,145.51,1e-08]
[1720935729255,12.86804483,145.53,145.51,1e-08]
[1720935729469,1.71818698,145.52,145.51,1e-08]